fUSD/lending_fUSD_20250610
["ID","MTS","AMOUNT","RATE_DAILY","PERIOD"]
[365245365,1749562243307,-490.0,0.00016767,2]
[365245367,1749562243320,-460.0,0.00016767,2]
[365245369,1749562243331,-499.66,0.00016767,2]
[365245371,1749562243343,-454.39418177,0.00016767,2]
[365245374,1749562243355,-490.0,0.00016767,2]
[365245376,1749562243367,-314.35052807,0.00016767,2]
[365245378,1749562243379,-490.0,0.00016767,2]
[365245380,1749562243391,-490.0,0.00016767,2]
[365245383,1749562243403,-1000.0,0.00016767,2]
[365245385,1749562243414,-490.0,0.00016767,2]
[365245387,1749562243425,-490.0,0.00016767,2]
[365245389,1749562243437,-490.0,0.00016767,2]
[365245391,1749562243448,-490.0,0.00016767,2]
[365245393,1749562243459,-490.0,0.00016767,2]
[365245396,1749562243470,-490.0,0.00016767,2]
[365245398,1749562243481,-490.0,0.00016767,2]
[365245400,1749562243491,-490.0,0.00016767,2]
[365245402,1749562243502,-191.15,0.00016767,2]
[365245404,1749562243514,-490.0,0.00016767,2]
[365245406,1749562243524,-490.0,0.00016767,2]
[365245408,1749562243535,-490.0,0.00016767,2]
[365245411,1749562243546,-490.0,0.00016767,2]
[365245413,1749562243558,-490.0,0.00016767,2]
[365245415,1749562243571,-490.0,0.00016767,2]
[365245417,1749562243582,-1335.15,0.00016767,2]
[365245419,1749562243594,-490.0,0.00016767,2]
[365245421,1749562243604,-346.32,0.00016767,2]
[365245423,1749562243615,-490.0,0.00016767,2]
[365245426,1749562243626,-490.0,0.00016767,2]
[365245428,1749562243639,-490.0,0.00016767,2]
[365245430,1749562243650,-480.0,0.00016767,2]
[365245432,1749562243662,-490.0,0.00016767,2]
[365245434,1749562243673,-490.0,0.00016767,2]
[365245436,1749562243684,-642.62,0.00016767,2]
[365245439,1749562243695,-490.0,0.00016767,2]
[365245441,1749562243706,-490.0,0.00016767,2]
[365245443,1749562243717,-490.0,0.00016767,2]
[365245445,1749562243728,-490.0,0.00016767,2]
[365245447,1749562243744,-414.89,0.00016767,2]
[365245450,1749562243757,-490.0,0.00016767,2]
[365245452,1749562243770,-603.98,0.00016767,2]
[365245454,1749562243784,-490.0,0.00016767,2]
[365245457,1749562243796,-490.0,0.00016767,2]
[365245459,1749562243808,-490.0,0.00016767,2]
[365245461,1749562243821,-490.0,0.00016767,2]
[365245463,1749562243833,-490.0,0.00016767,2]
[365245465,1749562243845,-490.0,0.00016767,2]
[365245467,1749562243858,-490.0,0.00016767,2]
[365245470,1749562243870,-1008.71,0.00016767,2]
[365245472,1749562243882,-490.0,0.00016767,2]
[365245474,1749562243894,-490.0,0.00016767,2]
[365245476,1749562243906,-490.0,0.00016767,2]
[365245479,1749562243922,-222.33802489,0.00016767,2]
[365245481,1749562243933,-490.0,0.00016767,2]
[365245483,1749562243945,-490.0,0.00016767,2]
[365245485,1749562243956,-196.65,0.00016767,2]
[365245488,1749562243968,-576.6,0.00016767,2]
[365245490,1749562243979,-460.0,0.00016767,2]
[365245492,1749562243991,-490.0,0.00016767,2]
[365245494,1749562244002,-490.0,0.00016767,2]
[365245496,1749562244013,-1711.0,0.00016877,2]
[365245498,1749562244024,-486.74131228,0.00016878,2]
[365245501,1749562244035,-827.0,0.00016909,2]
[365245503,1749562244046,-167.365413,0.0001693,2]
[365245505,1749562244058,-152.11845252,0.0001693,2]
[365245508,1749562244074,-185.47153191,0.0001693,2]
[365245510,1749562244085,-571.69,0.00016931,2]
[365245512,1749562244096,-450.0,0.00016931,2]
[365245514,1749562244107,-490.0,0.00016931,2]
[365245516,1749562244119,-490.0,0.00016931,2]
[365245518,1749562244129,-490.0,0.00016931,2]
[365245520,1749562244141,-440.0,0.00016931,2]
[365245522,1749562244152,-490.0,0.00016931,2]
[365245524,1749562244163,-450.0,0.00016931,2]
[365245527,1749562244175,-231.56040594,0.00016931,2]
[365245529,1749562244186,-1000.0,0.00016931,2]
[365245531,1749562244196,-490.0,0.00016931,2]
[365245533,1749562244208,-490.0,0.00016931,2]
[365245535,1749562244219,-490.0,0.00016931,2]
[365245537,1749562244230,-490.0,0.00016931,2]
[365245539,1749562244241,-490.0,0.00016931,2]
[365245541,1749562244252,-490.0,0.00016931,2]
[365245544,1749562244268,-490.0,0.00016931,2]
[365245546,1749562244280,-490.0,0.00016931,2]
[365245548,1749562244291,-490.0,0.00016931,2]
[365245550,1749562244303,-490.0,0.00016931,2]
[365245552,1749562244316,-490.0,0.00016931,2]
[365245554,1749562244327,-490.0,0.00016931,2]
[365245557,1749562244338,-490.0,0.00016931,2]
[365245559,1749562244350,-1335.15,0.00016931,2]
[365245561,1749562244363,-490.0,0.00016931,2]
[365245563,1749562244375,-490.0,0.00016931,2]
[365245565,1749562244387,-490.0,0.00016931,2]
[365245567,1749562244399,-450.0,0.00016931,2]
[365245570,1749562244410,-490.0,0.00016931,2]
[365245572,1749562244422,-642.62,0.00016931,2]
[365245574,1749562244434,-490.0,0.00016931,2]
[365245576,1749562244445,-490.0,0.00016931,2]
[365245578,1749562244455,-490.0,0.00016931,2]
[365245580,1749562244465,-490.0,0.00016931,2]
[365245582,1749562244477,-490.0,0.00016931,2]
[365245584,1749562244488,-603.98,0.00016931,2]
[365245586,1749562244499,-490.0,0.00016931,2]
[365245588,1749562244511,-490.0,0.00016931,2]
[365245590,1749562244522,-490.0,0.00016931,2]
[365245592,1749562244533,-490.0,0.00016931,2]
[365245595,1749562244543,-490.0,0.00016931,2]
[365245597,1749562244555,-490.0,0.00016931,2]
[365245599,1749562244570,-1008.71,0.00016931,2]
[365245601,1749562244581,-490.0,0.00016931,2]
[365245603,1749562244592,-490.0,0.00016931,2]
[365245605,1749562244602,-490.0,0.00016931,2]
[365245607,1749562244613,-490.0,0.00016931,2]
[365245609,1749562244625,-490.0,0.00016931,2]
[365245611,1749562244636,-576.6,0.00016931,2]
[365245613,1749562244646,-490.0,0.00016931,2]
[365245615,1749562244657,-490.0,0.00016931,2]
[365245616,1749562244668,-851.95286966,0.00016996,2]
[365245617,1749562244678,-335.0,0.00017016,4]
[365245618,1749562244689,-1000.0,0.00017021,2]
[365245619,1749562244700,-523.07807559,0.00017095,2]
[365245620,1749562244710,-490.0,0.00017095,2]
[365245621,1749562244721,-440.0,0.00017095,2]
[365245622,1749562244732,-490.0,0.00017095,2]
[365245623,1749562244744,-490.0,0.00017095,2]
[365245624,1749562244754,-490.0,0.00017095,2]
[365245625,1749562244767,-431.05035753,0.00017095,2]
[365245626,1749562244779,-490.0,0.00017095,2]
[365245627,1749562244790,-490.0,0.00017095,2]
[365245628,1749562244800,-274.85831355,0.00017095,2]
[365245629,1749562244811,-490.0,0.00017095,2]
[365245631,1749562244821,-490.0,0.00017095,2]
[365245633,1749562244831,-490.0,0.00017095,2]
[365245665,1749562245136,-490.0,0.00017095,2]
[365245669,1749562245159,-490.0,0.00017095,2]
[365245671,1749562245174,-1335.15,0.00017095,2]
[365245673,1749562245184,-490.0,0.00017095,2]
[365245675,1749562245194,-490.0,0.00017095,2]
[365245677,1749562245204,-490.0,0.00017095,2]
[365245679,1749562245214,-490.0,0.00017095,2]
[365245681,1749562245224,-642.62,0.00017095,2]
[365245683,1749562245234,-490.0,0.00017095,2]
[365245685,1749562245244,-516.55,0.00017095,2]
[365245687,1749562245254,-352.07,0.00017095,2]
[365245689,1749562245264,-490.0,0.00017095,2]
[365245691,1749562245274,-490.0,0.00017095,2]
[365245693,1749562245283,-603.98,0.00017095,2]
[365245695,1749562245294,-490.0,0.00017095,2]
[365245697,1749562245304,-490.0,0.00017095,2]
[365245699,1749562245316,-490.0,0.00017095,2]
[365245701,1749562245326,-490.0,0.00017095,2]
[365245703,1749562245336,-490.0,0.00017095,2]
[365245706,1749562245346,-490.0,0.00017095,2]
[365245707,1749562245356,-1008.71,0.00017095,2]
[365245710,1749562245366,-490.0,0.00017095,2]
[365245712,1749562245375,-490.0,0.00017095,2]
[365245714,1749562245386,-490.0,0.00017095,2]
[365245716,1749562245396,-490.0,0.00017095,2]
[365245718,1749562245406,-490.0,0.00017095,2]
[365245720,1749562245415,-576.6,0.00017095,2]
[365245722,1749562245424,-490.0,0.00017095,2]
[365245724,1749562245434,-366.75,0.00017095,2]
[365245727,1749562245443,-1533.58,0.00017148,2]
[365245729,1749562245453,-500.0,0.00017148,2]
[365245731,1749562245463,-1463.09262069,0.0001716,2]
[365245733,1749562245473,-486.74131228,0.00017254,2]
[365245735,1749562245483,-490.0,0.0001726,2]
[365245737,1749562245492,-490.0,0.0001726,2]
[365245739,1749562245502,-490.0,0.0001726,2]
[365245741,1749562245511,-490.0,0.0001726,2]
[365245743,1749562245521,-486.8,0.0001726,2]
[365245745,1749562245531,-490.0,0.0001726,2]
[365245747,1749562245540,-430.0,0.0001726,2]
[365245749,1749562245550,-490.0,0.0001726,2]
[365245751,1749562245566,-490.0,0.0001726,2]
[365245753,1749562245575,-164.01006182,0.0001726,2]
[365245755,1749562245584,-490.0,0.0001726,2]
[365245757,1749562245595,-1335.15,0.0001726,2]
[365245760,1749562245605,-416.96,0.0001726,2]
[365245762,1749562245614,-490.0,0.0001726,2]
[365245764,1749562245625,-490.0,0.0001726,2]
[365245766,1749562245636,-490.0,0.0001726,2]
[365245768,1749562245646,-642.62,0.0001726,2]
[365245770,1749562245656,-490.0,0.0001726,2]
[365245772,1749562245666,-490.0,0.0001726,2]
[365245774,1749562245675,-490.0,0.0001726,2]
[365245776,1749562245685,-603.98,0.0001726,2]
[365245778,1749562245695,-490.0,0.0001726,2]
[365245780,1749562245705,-490.0,0.0001726,2]
[365245782,1749562245715,-470.0,0.0001726,2]
[365245784,1749562245725,-490.0,0.0001726,2]
[365245786,1749562245735,-490.0,0.0001726,2]
[365245788,1749562245745,-490.0,0.0001726,2]
[365245790,1749562245754,-1008.71,0.0001726,2]
[365245792,1749562245765,-490.0,0.0001726,2]
[365245794,1749562245775,-490.0,0.0001726,2]
[365245797,1749562245792,-490.0,0.0001726,2]
[365245799,1749562245805,-490.0,0.0001726,2]
[365245801,1749562245817,-576.6,0.0001726,2]
[365245803,1749562245828,-490.0,0.0001726,2]
[365245805,1749562245838,-851.95286966,0.00017378,2]
[365245807,1749562245849,-490.0,0.00017424,2]
[365245810,1749562245859,-490.0,0.00017424,2]
[365245812,1749562245869,-490.0,0.00017424,2]
[365245814,1749562245879,-268.89451461,0.00017424,2]
[365245816,1749562245889,-490.0,0.00017424,2]
[365245818,1749562245899,-490.0,0.00017424,2]
[365245820,1749562245909,-490.0,0.00017424,2]
[365245822,1749562245919,-340.56850094,0.00017424,2]
[365245824,1749562245930,-1335.15,0.00017424,2]
[365245826,1749562245941,-490.0,0.00017424,2]
[365245828,1749562245952,-490.0,0.00017424,2]
[365245830,1749562245963,-192.74,0.00017424,2]
[365245832,1749562245974,-642.62,0.00017424,2]
[365245834,1749562245984,-490.0,0.00017424,2]
[365245836,1749562245995,-490.0,0.00017424,2]
[365245838,1749562246005,-490.0,0.00017424,2]
[365245840,1749562246015,-603.98,0.00017424,2]
[365245842,1749562246024,-490.0,0.00017424,2]
[365245844,1749562246034,-490.0,0.00017424,2]
[365245846,1749562246044,-490.0,0.00017424,2]
[365245848,1749562246054,-489.43,0.00017424,2]
[365245850,1749562246066,-604.32,0.00017424,2]
[365245852,1749562246076,-1008.71,0.00017424,2]
[365245854,1749562246086,-490.0,0.00017424,2]
[365245856,1749562246095,-490.0,0.00017424,2]
[365245858,1749562246105,-490.0,0.00017424,2]
[365245860,1749562246115,-490.0,0.00017424,2]
[365245862,1749562246125,-576.6,0.00017424,2]
[365245864,1749562246134,-486.92,0.00017424,2]
[365245866,1749562246144,-1000.0,0.00017457,2]
[365245868,1749562246153,-151.0,0.00017457,2]
[365245870,1749562246163,-1957.856,0.00017457,2]
[365245872,1749562246173,-151.0,0.00017457,2]
[365245874,1749562246182,-500.0,0.00017457,2]
[365245877,1749562246193,-500.0,0.00017457,2]
[365245878,1749562246202,-151.0,0.00017457,2]
[365245881,1749562246212,-500.0,0.00017457,2]
[365245883,1749562246222,-500.0,0.00017457,2]
[365245885,1749562246237,-500.0,0.00017457,2]
[365245887,1749562246247,-500.0,0.00017457,2]
[365245889,1749562246256,-500.0,0.00017457,2]
[365245891,1749562246266,-500.0,0.00017457,2]
[365245893,1749562246276,-500.0,0.00017457,2]
[365245895,1749562246285,-500.0,0.00017457,2]
[365245897,1749562246295,-500.0,0.00017457,2]
[365245899,1749562246304,-500.0,0.00017457,2]
[365245901,1749562246316,-500.0,0.00017457,2]
[365245903,1749562246326,-500.0,0.00017457,2]
[365245905,1749562246336,-500.0,0.00017457,2]
[365245907,1749562246347,-500.0,0.00017457,2]
[365245909,1749562246357,-500.0,0.00017457,2]
[365245911,1749562246367,-500.0,0.00017457,2]
[365245913,1749562246377,-500.0,0.00017457,2]
[365245915,1749562246387,-207.4,0.00017457,2]
[365245916,1749562246397,-1500.0,0.00017457,2]
[365245918,1749562246407,-1500.0,0.00017457,2]
[365245921,1749562246418,-1500.0,0.00017457,2]
[365245923,1749562246428,-1500.0,0.00017457,2]
[365245925,1749562246439,-1500.0,0.00017457,2]
[365245927,1749562246449,-1500.0,0.00017457,2]
[365245929,1749562246459,-1500.0,0.00017457,2]
[365245931,1749562246469,-1500.0,0.00017457,2]
[365245933,1749562246479,-1500.0,0.00017457,2]
[365245934,1749562246488,-1500.0,0.00017457,2]
[365245937,1749562246498,-1500.0,0.00017457,2]
[365245939,1749562246509,-1500.0,0.00017457,2]
[365245941,1749562246519,-1315.69244092,0.00017457,2]
[365245943,1749562246528,-1463.09262066,0.00017464,2]
[365245945,1749562246538,-335.0,0.00017469,4]
[365245947,1749562246548,-5336.28,0.00017507,2]
[365245949,1749562246562,-2030.296672,0.00017512,2]
[365245951,1749562246574,-169.09,0.0001753,2]
[365245953,1749562246584,-500.0,0.00017534,2]
[365245955,1749562246593,-2105.41764886,0.00017567,2]
[365245957,1749562246605,-500.0,0.00017568,2]
[365245959,1749562246614,-490.0,0.00017589,2]
[365245961,1749562246624,-490.0,0.00017589,2]
[365245963,1749562246635,-469.07726702,0.00017589,2]
[365245965,1749562246645,-490.0,0.00017589,2]
[365245967,1749562246654,-490.0,0.00017589,2]
[365245969,1749562246664,-490.0,0.00017589,2]
[365245971,1749562246673,-1335.15,0.00017589,2]
[365245973,1749562246683,-535.52,0.00017589,2]
[365245975,1749562246693,-490.0,0.00017589,2]
[365245977,1749562246702,-642.62,0.00017589,2]
[365245979,1749562246712,-490.0,0.00017589,2]
[365245981,1749562246721,-490.0,0.00017589,2]
[365245983,1749562246731,-490.0,0.00017589,2]
[365245985,1749562246741,-603.98,0.00017589,2]
[365245987,1749562246751,-490.0,0.00017589,2]
[365245989,1749562246760,-490.0,0.00017589,2]
[365245991,1749562246771,-490.0,0.00017589,2]
[365245993,1749562246780,-1008.71,0.00017589,2]
[365245995,1749562246790,-490.0,0.00017589,2]
[365245997,1749562246799,-490.0,0.00017589,2]
[365245999,1749562246809,-490.0,0.00017589,2]
[365246001,1749562246821,-484.2165653,0.00017589,2]
[365246003,1749562246831,-576.6,0.00017589,2]
[365246005,1749562246842,-833.29909032,0.00017591,2]
[365246007,1749562246853,-2183.31810187,0.00017622,2]
[365246010,1749562246863,-486.74131228,0.0001763,2]
[365246012,1749562246873,-1000.0,0.00017667,2]
[365246014,1749562246884,-2264.10087164,0.00017677,2]
[365246016,1749562246894,-1168.0446163,0.000177,2]
[365246018,1749562246904,-1168.04461606,0.000177,2]
[365246020,1749562246913,-1168.04461606,0.000177,2]
[365246022,1749562246922,-1168.04461606,0.000177,2]
[365246024,1749562246931,-1168.04461606,0.000177,2]
[365246026,1749562246942,-1168.04461606,0.000177,2]
[365246028,1749562246952,-1168.04461606,0.000177,2]
[365246030,1749562246961,-1168.04461606,0.000177,2]
[365246032,1749562246972,-212.37174846,0.000177,2]
[365246034,1749562246982,-212.37174837,0.000177,2]
[365246036,1749562246991,-212.37174837,0.000177,2]
[365246038,1749562247000,-212.37174837,0.000177,2]
[365246040,1749562247010,-1168.04461606,0.00017728,2]
[365246042,1749562247019,-2347.87260389,0.00017732,2]
[365246044,1749562247029,-605.32,0.00017732,2]
[365246046,1749562247039,-490.0,0.00017753,2]
[365246048,1749562247048,-490.0,0.00017753,2]
[365246050,1749562247058,-490.0,0.00017753,2]
[365246052,1749562247071,-490.0,0.00017753,2]
[365246054,1749562247081,-490.0,0.00017753,2]
[365246056,1749562247090,-1335.15,0.00017753,2]
[365246058,1749562247100,-490.0,0.00017753,2]
[365246060,1749562247110,-642.62,0.00017753,2]
[365246062,1749562247119,-490.0,0.00017753,2]
[365246064,1749562247128,-490.0,0.00017753,2]
[365246066,1749562247138,-490.0,0.00017753,2]
[365246068,1749562247148,-603.98,0.00017753,2]
[365246071,1749562247158,-490.0,0.00017753,2]
[365246073,1749562247167,-490.0,0.00017753,2]
[365246075,1749562247176,-490.0,0.00017753,2]
[365246077,1749562247186,-1008.71,0.00017753,2]
[365246079,1749562247196,-490.0,0.00017753,2]
[365246081,1749562247205,-490.0,0.00017753,2]
[365246083,1749562247214,-490.0,0.00017753,2]
[365246085,1749562247224,-576.6,0.00017753,2]
[365246087,1749562247233,-212.37174837,0.00017757,2]
[365246089,1749562247243,-1463.09262066,0.00017769,2]
[365246091,1749562247253,-250.0,0.0001778,2]
[365246093,1749562247263,-2434.74389024,0.00017787,2]
[365246095,1749562247272,-851.95286966,0.00017801,2]
[365246097,1749562247281,-500.0,0.00017808,2]
[365246099,1749562247291,-500.0,0.00017808,2]
[365246100,1749562247300,-500.0,0.00017808,2]
[365246103,1749562247309,-166.01841057,0.00017808,2]
[365246104,1749562247321,-500.0,0.00017808,2]
[365246106,1749562247331,-500.0,0.00017808,2]
[365246108,1749562247341,-500.0,0.00017808,2]
[365246110,1749562247350,-500.0,0.00017808,2]
[365246112,1749562247359,-152.0,0.00017811,3]
[365246115,1749562247368,-1168.04461606,0.00017831,2]
[365246117,1749562247378,-2524.82941417,0.00017842,2]
[365246119,1749562247389,-1604.19639824,0.00017855,2]
[365246121,1749562247398,-420.0,0.00017856,2]
[365246123,1749562247407,-420.0,0.00017856,2]
[365246125,1749562247417,-2618.2481025,0.00017897,2]
[365246127,1749562247426,-277.78,0.000179,2]
[365246129,1749562247435,-2790.83,0.000179,2]
[365246131,1749562247445,-13494.36899294,0.000179,2]
[365246133,1749562247454,-298.77669866,0.000179,2]
[365246135,1749562247463,-508.6611849,0.000179,2]
[365246137,1749562247472,-508.66118486,0.000179,2]
[365246139,1749562247481,-508.66118486,0.000179,2]
[365246141,1749562247491,-508.66118486,0.000179,2]
[365246143,1749562247500,-508.66118486,0.000179,2]
[365246145,1749562247509,-508.66118486,0.000179,2]
[365246147,1749562247518,-508.66118486,0.000179,2]
[365246149,1749562247527,-508.66118486,0.000179,2]
[365246151,1749562247536,-500.0,0.00017916,2]
[365246153,1749562247546,-490.0,0.00017917,2]
[365246155,1749562247557,-490.0,0.00017917,2]
[365246157,1749562247570,-490.0,0.00017917,2]
[365246159,1749562247580,-490.0,0.00017917,2]
[365246161,1749562247590,-1335.15,0.00017917,2]
[365246163,1749562247601,-490.0,0.00017917,2]
[365246165,1749562247610,-642.62,0.00017917,2]
[365246167,1749562247619,-490.0,0.00017917,2]
[365246169,1749562247629,-490.0,0.00017917,2]
[365246171,1749562247640,-490.0,0.00017917,2]
[365246173,1749562247649,-603.98,0.00017917,2]
[365246175,1749562247659,-490.0,0.00017917,2]
[365246177,1749562247668,-490.0,0.00017917,2]
[365246179,1749562247678,-490.0,0.00017917,2]
[365246181,1749562247688,-1008.71,0.00017917,2]
[365246183,1749562247699,-496.7904,0.00017917,2]
[365246185,1749562247710,-490.0,0.00017917,2]
[365246187,1749562247720,-490.0,0.00017917,2]
[365246189,1749562247730,-576.6,0.00017917,2]
[365246191,1749562247740,-335.0,0.00017921,5]
[365246193,1749562247749,-1168.04461606,0.00017934,2]
[365246195,1749562247759,-1680.0,0.00017945,2]
[365246197,1749562247769,-2715.12328229,0.00017952,2]
[365246199,1749562247779,-212.37174837,0.00017971,2]
[365246201,1749562247789,-851.95286966,0.00017972,2]
[365246203,1749562247799,-500.0,0.00017973,2]
[365246205,1749562247809,-500.0,0.00017973,2]
[365246207,1749562247822,-500.0,0.00017973,2]
[365246209,1749562247832,-500.0,0.00017973,2]
[365246211,1749562247842,-500.0,0.00017973,2]
[365246213,1749562247852,-500.0,0.00017973,2]
[365246215,1749562247862,-161.40784034,0.00017973,2]
[365246217,1749562247872,-500.0,0.00017973,2]
[365246219,1749562247883,-500.25226326,0.00017973,2]
[365246221,1749562247895,-528.79315848,0.00017973,2]
[365246223,1749562247904,-201.55085172,0.00017973,2]
[365246226,1749562247914,-511.68700359,0.00017973,2]
[365246228,1749562247924,-452.00655032,0.00017973,2]
[365246229,1749562247933,-500.0,0.00017973,2]
[365246232,1749562247943,-500.0,0.00017973,2]
[365246234,1749562247953,-1000.0,0.00017977,2]
[365246236,1749562247962,-140552.0693841,0.0001799,2]
[365246238,1749562247972,-1414.29876664,0.00018,2]
[365246240,1749562247982,-140888.58233428,0.00018,2]
[365246242,1749562247991,-1154.7711546,0.00018,2]
[365246244,1749562248002,-486.74131228,0.00018006,2]
[365246246,1749562248011,-2815.58284374,0.00018007,2]
[365246248,1749562248021,-1168.04461606,0.00018038,2]
[365246250,1749562248030,-2919.75940895,0.00018062,2]
[365246252,1749562248039,-1463.09262066,0.00018073,2]
[365246254,1749562248050,-600.0,0.00018081,4]
[365246256,1749562248059,-300.0,0.00018081,2]
[365246258,1749562248072,-490.0,0.00018082,2]
[365246260,1749562248082,-490.0,0.00018082,2]
[365246262,1749562248092,-490.0,0.00018082,2]
[365246264,1749562248101,-490.0,0.00018082,2]
[365246266,1749562248111,-1335.15,0.00018082,2]
[365246267,1749562248120,-490.0,0.00018082,2]
[365246268,1749562248130,-642.62,0.00018082,2]
[365246269,1749562248139,-490.0,0.00018082,2]
[365246270,1749562248148,-198.43311869,0.00018082,2]
[365246271,1749562248158,-490.0,0.00018082,2]
[365246272,1749562248167,-603.98,0.00018082,2]
[365246273,1749562248177,-490.0,0.00018082,2]
[365246274,1749562248187,-490.0,0.00018082,2]
[365246275,1749562248197,-490.0,0.00018082,2]
[365246276,1749562248207,-1008.71,0.00018082,2]
[365246277,1749562248216,-490.0,0.00018082,2]
[365246278,1749562248226,-490.0,0.00018082,2]
[365246279,1749562248236,-576.6,0.00018082,2]
[365246280,1749562248246,-1516.99087426,0.000181,2]
[365246282,1749562248256,-697.93535559,0.0001811,2]
[365246284,1749562248266,-3027.79050709,0.00018117,2]
[365246286,1749562248276,-152.0,0.00018137,4]
[365246288,1749562248287,-1168.04461606,0.00018141,2]
[365246290,1749562248297,-3139.81875585,0.00018172,2]
[365246292,1749562248306,-212.37174837,0.00018186,2]
[365246294,1749562248319,-500.0,0.00018199,2]
[365246296,1749562248329,-277.78,0.000182,2]
[365246299,1749562248339,-2790.83,0.000182,2]
[365246301,1749562248349,-3255.99204981,0.00018227,2]
[365246303,1749562248359,-1168.04461606,0.00018245,2]
[365246305,1749562248368,-490.0,0.00018246,2]
[365246307,1749562248378,-490.0,0.00018246,2]
[365246309,1749562248388,-490.0,0.00018246,2]
[365246311,1749562248397,-490.0,0.00018246,2]
[365246313,1749562248407,-1335.15,0.00018246,2]
[365246315,1749562248417,-490.0,0.00018246,2]
[365246317,1749562248428,-642.62,0.00018246,2]
[365246319,1749562248437,-490.0,0.00018246,2]
[365246321,1749562248447,-490.0,0.00018246,2]
[365246323,1749562248457,-603.98,0.00018246,2]
[365246325,1749562248466,-490.0,0.00018246,2]
[365246327,1749562248476,-490.0,0.00018246,2]
[365246329,1749562248488,-434.08392617,0.00018246,2]
[365246331,1749562248498,-1008.71,0.00018246,2]
[365246333,1749562248507,-490.0,0.00018246,2]
[365246335,1749562248517,-490.0,0.00018246,2]
[365246337,1749562248526,-576.6,0.00018246,2]
[365246356,1749562248710,-3376.46375566,0.00018282,2]
[365246358,1749562248724,-851.95286966,0.00018333,2]
[365246360,1749562248735,-495.49618527,0.00018337,2]
[365246362,1749562248745,-1183.80583611,0.00018345,2]
[365246388,1749562248999,-450.52470662,0.00018345,2]
[365246390,1749562249009,-1168.04461606,0.00018348,2]
[365246392,1749562249019,-335.0,0.00018374,6]
[365246394,1749562249029,-1554.13,0.00018375,2]
[365246396,1749562249038,-980.15325108,0.00018378,2]
[365246406,1749562249127,-249.49,0.00016438,2]
[365246408,1749562249137,-150.51,0.00016438,2]
[365246411,1749562249153,-1660.32,0.0001622,2]
[365246430,1749562249328,-1765.92261527,0.0001622,2]
[365246432,1749562249340,-1709.2545049,0.0001622,2]
[365246434,1749562249355,-2023.35419834,0.0001622,2]
[365246437,1749562249367,-946.59868149,0.0001622,2]
[365246439,1749562249376,-339.49,0.00016438,2]
[365246440,1749562249385,-490.0,0.00016438,2]
[365246442,1749562249395,-174.25611852,0.00016438,2]
[365246446,1749562249414,-315.74388148,0.00016438,2]
[365246448,1749562249424,-395.7,0.00016438,2]
[365246450,1749562249433,-490.0,0.00016438,2]
[365246452,1749562249443,-568.52386011,0.00016602,2]
[365246454,1749562249452,-508.66118486,0.000179,2]
[365246456,1749562249462,-482.93936958,0.00018378,2]
[365246458,1749562249472,-486.74131228,0.00018382,2]
[365246459,1749562249481,-212.37174837,0.000184,2]
[365246462,1749562249491,-490.0,0.0001841,2]
[365246463,1749562249500,-490.0,0.0001841,2]